{"text_format":"1","workbook":"xlsx","n_sheets":9,"sheets":["Invulinstructie ","Totaalblad","Overzicht gemeenten","Versiebeheer","begin","Gemeente x","einde","Productcodes","sheet_name_check"],"not_rendered":{"charts":0,"images":1,"macros":1,"external_links":1,"defined_names":9,"comments":0,"pivot_tables":0},"unopened":[],"bounds":{"document_bytes":16777216,"sheet_cells":100000,"rows_first":2000,"rows_last":500,"rows_between":2000,"halvings":0,"cell_chars":16384,"cell_head_chars":4096},"cells_cut":0,"cells_raw":0,"read":"whole","date_system":"1900"}

{"sheet":"Invulinstructie ","index":0,"n_rows":3,"n_cols":2,"rows_kept":3,"cut":false,"hidden":false,"merged":[[2,1,165,9]]}
[null,"Invulinstructie Financiële productieverantwoording Jeugdwet"]
[]
[null,"JEUGDWET INVULINSTRUCTIE \n\nAlgemeen\nDit formulier is bedoeld voor de financiële verantwoording van zorgaanbieders uit hoofde van de Jeugdwet. De financiële productieverantwoording bevat de definitieve opgave van de gerealiseerde productie 2017 en is onlosmakelijk verbonden aan het “Algemeen accountantsprotocol financiële productieverantwoording WMO en Jeugdwet 2017”. Zie verder het “Algemeen accountantsprotocol financiële productieverantwoording WMO en Jeugdwet 2017”  (http://i-sociaaldomein.nl/).\n\nVoor zover in dit formulier wordt gesproken over ‘zorgaanbieder’ wordt hiermee bedoeld: alle onderdelen van een beherend rechtspersoon die samen opgenomen zijn in het gesloten contract met betreffende gemeente(n). Voor de definitie van 'gemeente' zie de definitielijst van het “Algemeen accountantsprotocol financiële productieverantwoording WMO en Jeugdwet 2017”. \n\nEen boekjaar wordt gelijk gesteld aan het kalenderjaar. Wanneer sprake is van zorgtrajecten/ DBC’s die niet per einde van het boekjaar kunnen worden afgesloten, geldt dat de financiële productieverantwoording tevens de financiële waarde van fictief afgesloten zorgtrajecten/ DBC's omvat die per 31 december 2017 onderhanden zijn. \nWe wijzen u erop dat met ingang van 2018 gemeenten geen specialistische Jeugd-ggz kunnen contracteren en bekostigen op basis van de DBC-systematiek. Dit betekent dat op 31 december 2017 alle DBC’s die onder de Jeugdwet vallen, worden beëindigd. Voor de productieverantwoording betekent dit concreet dat er in principe geen sprake meer kan zijn van Onderhanden Werk ultimo 2017, omdat alle DBC’s worden beëindigd. Voor meer informatie over deze ‘harde afsluiting’ verwijzen wij u naar het ‘Protocol beëindiging DBC-bekostigingssystematiek jeugd-ggz en JW321-bericht per 01 januari 2018’  (http://i-sociaaldomein.nl/publicaties/protocol-beeindiging-dbc-systematiek-en-jw321-bericht).    \n\nHet formulier moet van voor naar achteren en van boven naar beneden worden ingevuld. Alle door u in te vullen velden zijn ‘blauw gearceerd’. Witte cellen geven uitkomsten van berekeningen weer. \n\nHieronder wordt, indien van toepassing, per tabblad een toelichting gegeven. \n\nTabblad ‘Totaalblad’\nHet tabblad ‘Totaalblad’ geeft de totaal gerealiseerde productie uit hoofde van de Jeugdwet weer, waarvan gemeenten een accountantscontrole voorschrijven. \n\nTabblad ‘Overzicht gemeenten’\nIn dit tabblad geeft u aan voor welke gemeente(n) u uw geleverde productie uit hoofde van de Jeugdwet wilt verantwoorden. Heeft u met een gemeente ook afspraken binnen het domein Wmo, dan gebruikt u daarvoor het verantwoordingsformat Wmo. In de financiële productieverantwoording op totaalniveau per domein wordt alleen de productie Jeugdwet verwerkt die betrekking heeft op de gemeenten die een accountantscontrole voorschrijven. De accountant waarmerkt dit overzicht en verwijst er naar in zijn controleverklaring (onderdeel “Overige aspecten – beperking in gebruik en verspreidingskring”). \n\nVoor het aanmaken van de verantwoordingen per gemeente, vult u in het bovenste blok op regelniveau de gemeente(n) in waar u verantwoording over af wilt leggen. Vervolgens klikt u op de button ‘Aanmaken verantwoordingen’. Het systeem maakt dan automatisch de tabbladen (voorzien van de naam van de gemeente) aan. Indien u meer regels nodig heeft, klikt u op ‘toevoegen’. Het systeem voegt een nieuwe regel toe onder de regel waar u staat met uw cursor. Dit maakt het mogelijk om ook tussen de reeds ingevoerde regels, nieuwe regels te plaatsen. Nadat u vervolgens de namen van de gemeente(n) heeft ingevuld, klikt u opnieuw op de button ‘Aanmaken verantwoordingen’. Het systeem voegt de nieuwe tabbladen voorzien van de naam van de gemeente toe. Heeft u per ongeluk een verkeerde gemeente opgenomen, dan kunt u deze verwijderen. Ga hiervoor op de betreffende regel staan en klik op de button ‘verwijderen’. Klik vervolgens opnieuw op de button ‘Aanmaken verantwoordingen’ om ook het bijbehorende tabblad te verwijderen.   \n \nNa het aanmaken van de tabbladen is het niet gewenst om de volgorde van de tabbladen te wijzigen. Indien u toch wijzigingen aanbrengt, kunnen er fouten optreden in de automatische tellingen.\n\nOp basis van de ingevulde financiële productieverantwoordingen per gemeente berekent het model in het tabblad ‘Totaalblad’ de totale gerealiseerde productie binnen het domein Jeugdwet. \n\nDoor ondertekening van het formulier ‘Financiële productieverantwoording 2017’ verklaart de bestuurder van de zorgaanbieder dat de financiële productieverantwoording 2017 naar waarheid en in overeenstemming met de vigerende wet- en regelgeving is verantwoord. Zie hiervoor paragraaf 3.5 Normen- en toetsingskader, “Algemeen accountantsprotocol financiële productieverantwoording WMO en Jeugdwet 2017”.\n\nTabblad ‘Versiebeheer’\nAls het formulier na publicatie nog is aangepast en er dus een nieuwe versie beschikbaar is, dan kunt u in het tabblad Versiebeheer zien welke mutaties er zijn doorgevoerd ten opzichte van het eerder gepubliceerde formulier. \n\nTabblad ‘Gemeente’ \nOvereenkomstig het aantal ingevulde ‘gemeenten’  worden standaard tabbladen aangemaakt. Per gemeente legt u achtereenvolgens verantwoording af over de gerealiseerde productie 2017 binnen het domein Jeugdwet. \n\nBinnen het formulier is zoveel mogelijk rekening gehouden met de variëteit in de wijze van het maken van inkoopafspraken, gehanteerde productgroepbenamingen (iJW2.1) en bekostigingssvormen door de gemeenten voor 2017. Hierdoor kan het voorkomen dat een deel van de velden voor u niet relevant is of dat u juist extra velden nodig heeft. Extra velden kunnen worden toegevoegd via de button 'toevoegen'.  Een teveel aan rijen kan worden verminderd via een klik op de button 'verwijderen'. Voor de consistentie van het formulier, verzoeken wij u, met uitzondering van de daarvoor bestemde buttons, geen cellen/ rijen/ kolommen te verwijderen. \n\nDiverse gemeenten hebben in 2015 contracten voor langere tijd (>1 jaar) afgesloten en gebruikten producten van 2015 ook nog in 2016 en 2017. Om deze reden zijn in dit verantwoordingsformat de categorieën 31 t/m 38 uit 2015 toegevoegd. De verantwoording die u invult, betreft vanzelfsprekend de productie over 2017.\n\nIndien het overeengekomen contract voorzien is van een inkoopordernummer dan kunt u dit nummer per bekostigingsstroom invullen.\n\n- In de eerste kolom worden de automatisch aangemaakte regelnummers weergegeven;\n- In de tweede kolom, onder de naam van de Productcategorie (bijvoorbeeld Persoonlijke verzorging) vult u de omschrijving van het product in;\n- In de kolom 'Code' vult u, indien aanwezig, de bijbehorende productcode in;\n- In de kolom Eenheid geeft u aan op basis van welke grootheid de gerealiseerde productieaantallen verantwoord worden. Dit kan zijn minuten,  uren, dagdelen, etmalen, cliënten, trajecten, etc. ;\n- In de kolom 'Aantal' vult u het gerealiseerde aantal in, de Q; \n- In de kolom 'Prijs' vult u het overeengekomen tarief in, de P; \n- In de kolom 'Realisatie' berekent het formulier de gerealiseerde productie middels P*Q; \n- De laatste regel van een blok geeft de totaal gerealiseerde productie per Productcategorie weer; \n\nIn onderdeel 51 en 52 verantwoordt u de DBC productie over 2017. Deze productie is het saldo van onderstaande componenten: \n- Afgesloten DBC's\n- Af: Onderhanden werk per 1/1 \n- Bij: Onderhanden werk per 31/12 \nBij de productieverantwoording gaat het om geleverde zorg en niet de kasstromen (zoals bevoorschotting of tussentijdse facturatie). Afgesloten DBC’s worden opgenomen in het format onder regel 51a (Generalistische basis GGZ) of 52a (Specialistische GGZ). Of al dan niet is gefactureerd is niet relevant. \nNiet afgesloten DBC’s (OnderHandenWerk) worden opgenomen in het format onder regel 51b (Generalistische basis GGZ) of 52b (Specialistische GGZ). De waardering van het OHW wordt bepaald door een inschatting te maken op welke DBC’s de productie gaat eindigen en vervolgens door het aandeel voor 2017 op basis van de gemiddelde prijs te bepalen (fictief afsluiten op 31 december). \nVoor de volledigheid wijzen wij u er nogmaals op dat met ingang van 2018 gemeenten geen specialistische Jeugd-ggz kunnen contracteren en bekostigen op basis van de DBC-systematiek. Dit betekent dat op 31 december 2017 alle DBC’s die onder de Jeugdwet vallen worden beëindigd. Voor de productieverantwoording betekent dit concreet dat er in principe geen sprake meer kan zijn van Onderhanden Werk ultimo 2017, omdat alle DBC’s worde beëindigd. Voor meer informatie over deze ‘harde afsluiting’ verwijzen wij u naar het ‘Protocol beëindiging DBC-bekostigingssystematiek jeugd-ggz en JW321-bericht per 01 januari 2018’  (http://i-sociaaldomein.nl/publicaties/protocol-beeindiging-dbc-systematiek-en-jw321-bericht).    \n\nVoor meer informatie over de waardering van het onderhanden werk wordt verwezen naar \"Bijlage IV Definities en toelichting van gehanteerde begrippen\" van het “Algemeen accountantsprotocol financiële productieverantwoording WMO en Jeugdwet 2017”. \n\nIn onderdeel 54 vermeldt u producten of arrangementen die niet bekostigd zijn op basis van een input- of outputfinanciering (P*Q).  Hierbij kunt u denken aan bekostigingsvormen als taakgerichte productieafspraken, subsidiabele kosten, lumpsumbekostiging of overige specifieke bekostigingsvormen. Ook kunt u hier de maatwerkarrangementen kwijt die in Profielen (in het tabblad Productcodes te herkennen aan de codes die beginnen met een (‘P’) worden weergegeven. Verder biedt dit onderdeel tevens de mogelijkheid om correcties weer te geven. Hierbij kunt u bijvoorbeeld denken aan correcties uit voorgaande jaren n.a.v. een accountantscontrole. De regel correcties is niet bedoeld om gerealiseerde overproductie of doelmatigheidscorrecties weer te geven. \n\nIn de onderdelen 55, 56 en 57 verantwoordt u de productie die u leverde op basis van afspraken vanuit het Landelijk Transitie Arrangement. Het LTA beschrijft de afspraken tussen alle gemeenten en de zorgaanbieders die (mogelijk) in aanmerking komen voor landelijke afspraken voor specialistische functies. Producten die hieronder vallen, zijn onderaan opgenomen en 'geel gearceerd' in het tabblad Productcodes en zijn te herkennen aan de codes die beginnen met een ‘L’.  \n\nIndien u gebruik maakt van de Toelichtingsblokken, verzoeken wij u, indien mogelijk, te verwijzen naar het betreffende regelnummer. \n\nTabblad ‘Productcodes’\nHanteert de gemeente waar u zorg levert de landelijke standaardproductcodes conform iJW2.1, dan kunt u gebruik maken van het tabblad Productcodes. Hierin is de Standaardproductcodelijst opgenomen conform de landelijke I-standaarden (https://www.istandaarden.nl/istandaarden/ijw/werken-met-ijw-21/tabellen). Door de beveiliging van de werkbladen is het niet mogelijk om de standaardproductcodes te knippen en te plakken. Om de omschrijvingen en codes te verwerken in het verantwoordingsformat typt u in het gewenste veld in het tabblad van de gemeente waarover u verantwoordt \"=\",  vervolgens gaat u naar het tabblad \"Productcodes\" en kiest u het gewenste/geleverde product en drukt u tot slot op Enter.\n\nDeze uitgave is met grote zorgvuldigheid en met gebruikmaking van de meest actuele gegevens tot stand gekomen. Het is evenwel niet geheel uitgesloten dat de informatie in deze uitgave onjuistheden en/of onvolkomenheden bevat. AAG aanvaardt geen aansprakelijkheid voor directe of indirecte schade ontstaan door eventuele onjuistheden en/of onvolkomenheden. Aan de inhoud van deze uitgave kunnen geen rechten worden ontleend."]

{"sheet":"Totaalblad","index":1,"n_rows":48,"n_cols":14,"rows_kept":48,"cut":false,"hidden":false,"merged":[[31,10,40,14],[30,10,30,14],[19,5,19,7],[11,1,11,2],[11,3,11,8],[40,1,40,8],[31,1,39,8],[28,1,28,16],[27,1,27,4],[23,1,23,10],[25,1,26,14],[21,5,21,7],[20,5,20,7],[22,1,22,10],[20,3,20,4],[10,3,10,8],[20,1,20,2],[9,1,9,2],[8,4,8,8],[7,3,7,8],[7,1,7,2],[8,1,8,2],[10,1,10,2],[0,11,0,12],[0,9,0,10],[5,1,5,2],[9,3,9,8],[4,10,4,14],[5,13,5,14],[6,1,6,2],[5,3,5,8],[6,3,6,8]]}
[null,"Financiële productieverantwoording Jeugdwet op totaalniveau",null,null,null,null,null,null,null,2017]
[]
[null,"Zorgaanbieder "]
[]
[null,"Zorgaanbieder",null,null,null,null,null,null,null,null,"Versiebeheer"]
[null,"Naam",null,null,null,null,null,null,null,null,"Versiedatum",null,null,{"$f":"LOOKUP(9.99999999999999E+307,Versiebeheer!B:B)","v":"2017-09-04"}]
[null,"Plaats"]
[null,"KvK-nummer"]
[null,"Contactpersoon"]
[null,"Telefoon"]
[null,"E-mail"]
[null,"AGB-code"]
[]
[]
[]
[]
[]
[]
[]
[null,"Financieringsstroom",null,null,null,"Gerealiseerde productie 2017"]
[null,"Jeugdwet",null,null,null,{"$f":"SUM(begin:einde!R2)","v":0}]
[null,"TOTAAL gerealiseerde productie ",null,null,null,{"$f":"F21","v":0}]
[]
[]
[null,"Door ondertekening van het formulier 'Financiële productieverantwoording 2017':"]
[null,"Verklaart de bestuurder van de zorgaanbieder dat de financiële productieverantwoording Jeugdwet 2017 naar waarheid en in overeenstemming met het normenkader (zie paragraaf 3.5 Normen- en toetsingskader, Algemeen Accountantsprotocol 2017 Financiële productieverantwoording Wmo en Jeugdwet) is verantwoord."]
[]
[]
[]
[]
[null,"Zorgaanbieder",null,null,null,null,null,null,null,null,"Waarmerking Accountant voor identificatiedoeleinden:"]
[null,"(Naam & handtekening)",null,null,null,null,null,null,null,null,"behorend bij verklaring afgegeven d.d.:"]
[]
[]
[]
[]
[]
[]
[]
[]
[null,"Datum:"]
[]
[]
[]
[]
[]
[]
[null,"  "]

{"sheet":"Overzicht gemeenten","index":2,"n_rows":44,"n_cols":14,"rows_kept":44,"cut":false,"hidden":false,"merged":[[34,10,43,14],[25,2,25,9],[33,10,33,14],[23,2,23,9],[15,2,15,9],[16,2,16,9],[22,2,22,9],[21,2,21,9],[17,2,17,9],[18,2,18,9],[19,2,19,9],[20,2,20,9],[10,2,10,9],[14,2,14,9],[13,2,13,9],[12,2,12,9],[9,2,9,9],[11,2,11,9]]}
[null,"Overzicht gemeenten waarop financiële productieverantwoording Jeugdwet op totaalniveau betrekking heeft"]
[]
[]
[]
[]
[]
[]
[]
[null,0,"Gemeente(n)"]
[null,1]
[null,2]
[null,3]
[null,4]
[null,5]
[null,6]
[null,7]
[null,8]
[null,9]
[null,10]
[null,11]
[null,12]
[null,13]
[null,14]
[null,15]
[null,500,null,null,null,null,null,null,null,null,null,null,null,"hide row"]
[null,null,null,null,null,null,null,null,null,null,null,null,null,"hide row"]
[]
[]
[]
[]
[]
[]
[]
[null,"Zorgaanbieder",null,null,null,null,null,null,null,null,"Waarmerking Accountant voor identificatiedoeleinden:"]
[null,"(Naam & handtekening)",null,null,null,null,null,null,null,null,"behorend bij verklaring afgegeven d.d.:"]
[]
[]
[]
[]
[]
[]
[]
[]
[null,"Datum:"]

{"sheet":"Versiebeheer","index":3,"n_rows":11,"n_cols":6,"rows_kept":11,"cut":false,"hidden":false,"merged":[]}
[]
[null,"Versiebeheer"]
[]
[null,"In onderstaande tabel ziet u welke mutaties er zijn ten opzichte van eerdere versies van het formulier Financiële productieverantwoording 20XX"]
[null,"Hiermee kunt u bepalen of de gedane aanpassingen voor u van belang zijn. "]
[]
[null,"De eerste versie van het formulier is van:",null,null,{"$f":"B11","v":"2017-09-04"}]
[null,"De huidige versie van het formulier is van:",null,null,{"$f":"MAX(B11:B20)","v":"2017-09-04"}]
[]
[null,"Versie","Werkblad","Regel(s)","Foutmelding","Aanpassing"]
[null,"2017-09-04",null,null,null,"Eerste versie."]

{"sheet":"begin","index":4,"n_rows":0,"n_cols":0,"rows_kept":0,"cut":false,"hidden":true,"merged":[]}

{"sheet":"Gemeente x","index":5,"n_rows":255,"n_cols":18,"rows_kept":255,"cut":false,"hidden":true,"merged":[[217,2,217,9],[218,2,218,9],[219,2,219,9],[0,8,1,10],[169,2,169,9],[168,2,168,9],[165,2,165,9],[166,2,166,9],[89,2,89,5],[11,3,11,6],[122,2,122,5],[82,2,82,5],[18,3,18,5],[7,8,7,10],[94,2,94,5],[108,2,108,5],[8,1,8,2],[8,8,8,9],[9,8,9,9],[10,8,10,9],[11,8,11,9],[80,2,80,5],[12,1,12,2],[12,3,12,6],[38,2,38,5],[44,2,44,5],[72,2,72,5],[51,2,51,5],[52,2,52,5],[53,2,53,5],[58,2,58,5],[11,1,11,2],[12,8,12,9],[13,8,13,9],[14,8,14,9],[20,2,20,5],[21,2,21,5],[22,2,22,5],[28,2,28,5],[29,2,29,5],[8,3,8,6],[9,3,9,6],[9,1,9,2],[10,1,10,2],[10,3,10,6],[45,2,45,5],[46,2,46,5],[143,2,143,5],[81,2,81,5],[88,2,88,5],[73,2,73,5],[74,2,74,5],[60,2,60,5],[65,2,65,5],[66,2,66,5],[67,2,67,5],[138,2,138,5],[59,2,59,5],[87,2,87,5],[96,2,96,5],[103,2,103,5],[30,2,30,5],[36,2,36,5],[37,2,37,5],[254,1,254,7],[167,2,167,9],[131,2,131,5],[117,2,117,5],[124,2,124,5],[226,1,226,9],[227,1,235,1],[249,9,249,10],[123,2,123,5],[129,2,129,5],[192,2,192,5],[248,9,248,10],[194,2,194,5],[145,2,145,5],[250,9,250,10],[223,2,223,9],[224,2,224,9],[195,2,195,5],[187,2,187,5],[183,2,183,9],[179,2,179,9],[180,2,180,9],[181,2,181,9],[182,2,182,9],[238,1,246,1],[222,2,222,9],[152,2,152,5],[157,2,157,5],[178,2,178,6],[173,2,173,5],[185,2,185,5],[186,2,186,5],[193,2,193,5],[227,2,235,10],[172,2,172,5],[237,1,237,10],[200,2,200,5],[201,2,201,5],[202,2,202,5],[207,2,207,5],[208,2,208,5],[209,2,209,5],[158,2,158,5],[159,2,159,5],[238,2,246,10],[214,2,214,6],[215,2,215,9],[216,2,216,9],[171,2,171,5],[164,2,164,6],[150,2,150,5],[151,2,151,5],[95,2,95,5],[102,2,102,5],[110,2,110,5],[116,2,116,5],[136,2,136,5],[137,2,137,5],[115,2,115,5],[101,2,101,5],[109,2,109,5],[130,2,130,5],[144,2,144,5]]}
[null,"Financiële productieverantwoording Jeugdwet",null,null,null,null,null,null,{"$f":"\"Gemeente \"&D9","v":"Gemeente "},null,null,null,null,null,null,null,"wmo",{"$f":"#REF!","v":{"$error":"#REF!"}}]
[null,null,null,null,null,null,null,null,null,null,null,null,null,null,null,null,"jeugd",{"$f":"K223","v":0}]
[]
[null,"In dit onderdeel verantwoordt de zorgaanbieder de geleverde prestaties waarover de zorgaanbieder verantwoording af dient te leggen bij de gemeente: "]
[null,"geleverde prestaties met als grondslag de Jeugdwet. Alle aantallen worden op basis van de werkelijke realisatie ingevuld. "]
[]
[]
[null,"Gemeente ",null,null,null,null,null,null,"Zorgaanbieder"]
[null,"Naam",null,null,null,null,null,null,"Naam",null,{"$f":"Totaalblad!D6","v":0}]
[null,"Plaats",null,null,null,null,null,null,"Plaats",null,{"$f":"Totaalblad!D7","v":0}]
[null,"Contactpersoon",null,null,null,null,null,null,"KvK-nummer",null,{"$f":"Totaalblad!D8","v":0}]
[null,"Telefoon",null,null,null,null,null,null,"Contactpersoon Jeugdwet"]
[null,"E-mail",null,null,null,null,null,null,"Telefoon"]
[null,null,null,null,null,null,null,null,"E-mail"]
[null,null,null,null,null,null,null,null,"AGB-code",null,{"$f":"Totaalblad!D12","v":0}]
[]
[]
[null,"Geleverde prestaties Jeugdwet"]
[null,null,"Inkoop order nr: "]
[]
[null,31,"(2015) Zonder verblijf: uitgevoerd door wijk- of buurtteam",null,null,null,"Code","Eenheid","Aantal (Q)","Prijs in € (P)","Realisatie 2017 in €\n"]
[null,3100,null,null,null,null,null,null,null,null,{"$f":"I22*J22","v":0}]
[null,3101,null,null,null,null,null,null,null,null,{"$f":"I23*J23","v":0}]
[null,3199]
[null,null,"Totaal Zonder verblijf: uitgevoerd door wijk- of buurtteam",null,null,null,null,null,null,null,{"$f":"SUM(K22:K24)","v":0}]
[]
[]
[]
[null,32,"(2015) Zonder verblijf: ambulante jeugdhulp op locatie van de aanbieder",null,null,null,"Code","Eenheid","Aantal (Q)","Prijs in € (P)","Realisatie 2017 in €\n"]
[null,3200,null,null,null,null,null,null,null,null,{"$f":"I30*J30","v":0}]
[null,3201,null,null,null,null,null,null,null,null,{"$f":"I31*J31","v":0}]
[null,3299]
[null,null,"Totaal Zonder verblijf: ambulante jeugdhulp op locatie van de aanbieder",null,null,null,null,null,null,null,{"$f":"SUM(K30:K32)","v":0}]
[]
[]
[]
[null,33,"(2015) Zonder verblijf: daghulp op locatie van de aanbieder",null,null,null,"Code","Eenheid","Aantal (Q)","Prijs in € (P)","Realisatie 2017 in €\n"]
[null,3300,null,null,null,null,null,null,null,null,{"$f":"I38*J38","v":0}]
[null,3301,null,null,null,null,null,null,null,null,{"$f":"I39*J39","v":0}]
[null,3399]
[null,null,"Totaal Zonder verblijf: daghulp op locatie van de aanbieder",null,null,null,null,null,null,null,{"$f":"SUM(K38:K40)","v":0}]
[]
[]
[]
[null,34,"(2015) Zonder verblijf: jeugdhulp in het netwerk van de jeugdige",null,null,null,"Code","Eenheid","Aantal (Q)","Prijs in € (P)","Realisatie 2017 in €\n"]
[null,3400,null,null,null,null,null,null,null,null,{"$f":"I46*J46","v":0}]
[null,3401,null,null,null,null,null,null,null,null,{"$f":"I47*J47","v":0}]
[null,3499]
[null,null,"Totaal Zonder verblijf: jeugdhulp in het netwerk van de jeugdige",null,null,null,null,null,null,null,{"$f":"SUM(K46:K48)","v":0}]
[]
[]
[null,35,"(2015) Met verblijf: pleegzorg",null,null,null,"Code","Eenheid","Aantal (Q)","Prijs in € (P)","Realisatie 2017 in €\n"]
[null,3500,null,null,null,null,null,null,null,null,{"$f":"I53*J53","v":0}]
[null,3501,null,null,null,null,null,null,null,null,{"$f":"I54*J54","v":0}]
[null,3599]
[null,null,"Totaal Met verblijf: pleegzorg",null,null,null,null,null,null,null,{"$f":"SUM(K53:K55)","v":0}]
[]
[]
[null,36,"(2015) Met verblijf: gezinsgericht",null,null,null,"Code","Eenheid","Aantal (Q)","Prijs in € (P)","Realisatie 2017 in €\n"]
[null,3600,null,null,null,null,null,null,null,null,{"$f":"I60*J60","v":0}]
[null,3601,null,null,null,null,null,null,null,null,{"$f":"I61*J61","v":0}]
[null,3699]
[null,null,"Totaal Met verblijf: gezinsgericht",null,null,null,null,null,null,null,{"$f":"SUM(K60:K62)","v":0}]
[]
[]
[null,37,"(2015) Met verblijf: gesloten plaatsing",null,null,null,"Code","Eenheid","Aantal (Q)","Prijs in € (P)","Realisatie 2017 in €\n"]
[null,3700,null,null,null,null,null,null,null,null,{"$f":"I67*J67","v":0}]
[null,3701,null,null,null,null,null,null,null,null,{"$f":"I68*J68","v":0}]
[null,3799]
[null,null,"Totaal Met verblijf: gesloten plaatsing",null,null,null,null,null,null,null,{"$f":"SUM(K67:K69)","v":0}]
[]
[]
[null,38,"(2015) Met verblijf: overig residentieel",null,null,null,"Code","Eenheid","Aantal (Q)","Prijs in € (P)","Realisatie 2017 in €\n"]
[null,3800,null,null,null,null,null,null,null,null,{"$f":"I74*J74","v":0}]
[null,3801,null,null,null,null,null,null,null,null,{"$f":"I75*J75","v":0}]
[null,3899]
[null,null,"Totaal Met verblijf: overig residentieel",null,null,null,null,null,null,null,{"$f":"SUM(K74:K76)","v":0}]
[]
[]
[]
[null,40,"Persoonlijke verzorging",null,null,null,"Code","Eenheid","Aantal (Q)","Prijs in € (P)","Realisatie 2017 in €\n"]
[null,4000,null,null,null,null,null,null,null,null,{"$f":"I82*J82","v":0}]
[null,4001,null,null,null,null,null,null,null,null,{"$f":"I83*J83","v":0}]
[null,4099]
[null,null,"Totaal Persoonlijke verzorging",null,null,null,null,null,null,null,{"$f":"SUM(K82:K84)","v":0}]
[]
[]
[null,41,"Dagbehandeling",null,null,null,"Code","Eenheid","Aantal (Q)","Prijs in € (P)","Realisatie 2017 in €\n"]
[null,4100,null,null,null,null,null,null,null,null,{"$f":"I89*J89","v":0}]
[null,4101,null,null,null,null,null,null,null,null,{"$f":"I90*J90","v":0}]
[null,4199]
[null,null,"Totaal Dagbehandeling",null,null,null,null,null,null,null,{"$f":"SUM(K89:K91)","v":0}]
[]
[]
[null,42,"Vervoersdiensten",null,null,null,"Code","Eenheid","Aantal (Q)","Prijs in € (P)","Realisatie 2017 in €\n"]
[null,4200,null,null,null,null,null,null,null,null,{"$f":"I96*J96","v":0}]
[null,4201,null,null,null,null,null,null,null,null,{"$f":"I97*J97","v":0}]
[null,4299]
[null,null,"Totaal Vervoersdiensten",null,null,null,null,null,null,null,{"$f":"SUM(K96:K98)","v":0}]
[]
[]
[null,43,"Jeugdhulp verblijf (incl. behandeling)",null,null,null,"Code","Eenheid","Aantal (Q)","Prijs in € (P)","Realisatie 2017 in €\n"]
[null,4300,null,null,null,null,null,null,null,null,{"$f":"I103*J103","v":0}]
[null,4301,null,null,null,null,null,null,null,null,{"$f":"I104*J104","v":0}]
[null,4399]
[null,null,"Totaal Jeugdhulp verblijf (incl. behandeling)",null,null,null,null,null,null,null,{"$f":"SUM(K103:K105)","v":0}]
[]
[]
[null,44,"Jeugdhulp verblijf (excl. behandeling)",null,null,null,"Code","Eenheid","Aantal (Q)","Prijs in € (P)","Realisatie 2017 in €\n"]
[null,4400,null,null,null,null,null,null,null,null,{"$f":"I110*J110","v":0}]
[null,4401,null,null,null,null,null,null,null,null,{"$f":"I111*J111","v":0}]
[null,4499]
[null,null,"Totaal Jeugdhulp verblijf (excl. behandeling)",null,null,null,null,null,null,null,{"$f":"SUM(K110:K112)","v":0}]
[]
[]
[null,45,"Jeugdhulp Ambulant",null,null,null,"Code","Eenheid","Aantal (Q)","Prijs in € (P)","Realisatie 2017 in €\n"]
[null,4500,null,null,null,null,null,null,null,null,{"$f":"I117*J117","v":0}]
[null,4501,null,null,null,null,null,null,null,null,{"$f":"I118*J118","v":0}]
[null,4599]
[null,null,"Totaal Jeugdhulp Ambulant",null,null,null,null,null,null,null,{"$f":"SUM(K117:K119)","v":0}]
[]
[]
[null,46,"Jeugdhulp Crisis",null,null,null,"Code","Eenheid","Aantal (Q)","Prijs in € (P)","Realisatie 2017 in €\n"]
[null,4600,null,null,null,null,null,null,null,null,{"$f":"I124*J124","v":0}]
[null,4601,null,null,null,null,null,null,null,null,{"$f":"I125*J125","v":0}]
[null,4699]
[null,null,"Totaal Jeugdhulp Crisis",null,null,null,null,null,null,null,{"$f":"SUM(K124:K126)","v":0}]
[]
[]
[null,47,"Jeugdreclassering",null,null,null,"Code","Eenheid","Aantal (Q)","Prijs in € (P)","Realisatie 2017 in €\n"]
[null,4700,null,null,null,null,null,null,null,null,{"$f":"I131*J131","v":0}]
[null,4701,null,null,null,null,null,null,null,null,{"$f":"I132*J132","v":0}]
[null,4799]
[null,null,"Totaal Jeugdreclassering",null,null,null,null,null,null,null,{"$f":"SUM(K131:K133)","v":0}]
[]
[]
[null,48,"Jeugdbescherming",null,null,null,"Code","Eenheid","Aantal (Q)","Prijs in € (P)","Realisatie 2017 in €\n"]
[null,4800,null,null,null,null,null,null,null,null,{"$f":"I138*J138","v":0}]
[null,4801,null,null,null,null,null,null,null,null,{"$f":"I139*J139","v":0}]
[null,4899]
[null,null,"Totaal Jeugdbescherming",null,null,null,null,null,null,null,{"$f":"SUM(K138:K140)","v":0}]
[]
[]
[null,49,"Activiteiten in het preventief justitieel kader",null,null,null,"Code","Eenheid","Aantal (Q)","Prijs in € (P)","Realisatie 2017 in €\n"]
[null,4900,null,null,null,null,null,null,null,null,{"$f":"I145*J145","v":0}]
[null,4901,null,null,null,null,null,null,null,null,{"$f":"I146*J146","v":0}]
[null,4999]
[null,null,"Totaal Activiteiten in het preventief justitieel kader",null,null,null,null,null,null,null,{"$f":"SUM(K145:K147)","v":0}]
[]
[]
[null,50,"Maatwerkarrangementen",null,null,null,"Code","Eenheid","Aantal (Q)","Prijs in € (P)","Realisatie 2017 in €\n"]
[null,5000,null,null,null,null,null,null,null,null,{"$f":"I152*J152","v":0}]
[null,5001,null,null,null,null,null,null,null,null,{"$f":"I153*J153","v":0}]
[null,5099]
[null,null,"Totaal Maatwerkarrangementen",null,null,null,null,null,null,null,{"$f":"SUM(K152:K154)","v":0}]
[]
[]
[null,"51a","Generalistische basis-ggz (DBC)",null,null,null,"Code","Eenheid","Aantal (Q)","Prijs in € (P)","Realisatie 2017 in €\n"]
[null,5100,null,null,null,null,null,null,null,null,{"$f":"I159*J159","v":0}]
[null,5101,null,null,null,null,null,null,null,null,{"$f":"I160*J160","v":0}]
[null,5199]
[null,null,"Totaal Generalistische basis-ggz (DBC)",null,null,null,null,null,null,null,{"$f":"SUM(K159:K161)","v":0}]
[]
[]
[null,"51b","Generalistische basis ggz (DBC)",null,null,null,null,null,null,null,"Realisatie in €"]
[null,null,"Totaal onderhanden werk per 31-12-2016"]
[null,null,"Onderhandenwerk per 31-12-2017"]
[null,null,"Mutaties onderhanden werk per 31-12-2017",null,null,null,null,null,null,null,{"$f":"K167-K166","v":0}]
[null,null,"Totaal bedrag van afgesloten DBC's in boekjaar 2017",null,null,null,null,null,null,null,{"$f":"K162","v":0}]
[null,null,"Totaal omzet DBC's 2017",null,null,null,null,null,null,null,{"$f":"SUM(K168+K169)","v":0}]
[]
[null,"52a","Specialistische ggz (DBC)",null,null,null,"Code","Eenheid","Aantal (Q)","Prijs in € (P)","Realisatie 2017 in €\n"]
[null,5200,null,null,null,null,null,null,null,null,{"$f":"I173*J173","v":0}]
[null,5201,null,null,null,null,null,null,null,null,{"$f":"I174*J174","v":0}]
[null,5299]
[null,null,"Totaal Specialistische ggz (DBC)",null,null,null,null,null,null,null,{"$f":"SUM(K173:K175)","v":0}]
[]
[]
[null,"52b","Specialitische ggz (DBC)",null,null,null,null,null,null,null,"Realisatie in €"]
[null,null,"Totaal onderhanden werk per 31-12-2016"]
[null,null,"Onderhandenwerk per 31-12-2017"]
[null,null,"Mutaties onderhanden werk per 31-12-2017",null,null,null,null,null,null,null,{"$f":"K181-K180","v":0}]
[null,null,"Totaal bedrag van afgesloten DBC's in boekjaar 20167",null,null,null,null,null,null,null,{"$f":"K176","v":0}]
[null,null,"Totaal omzet DBC's 2017",null,null,null,null,null,null,null,{"$f":"SUM(K182+K183)","v":0}]
[]
[null,53,"Kindergeneeskunde",null,null,null,"Code","Eenheid","Aantal (Q)","Prijs in € (P)","Realisatie 2017 in €\n"]
[null,5300,null,null,null,null,null,null,null,null,{"$f":"I187*J187","v":0}]
[null,5301,null,null,null,null,null,null,null,null,{"$f":"I188*J188","v":0}]
[null,5399]
[null,null,"Totaal Kindergeneeskunde",null,null,null,null,null,null,null,{"$f":"SUM(K187:K189)","v":0}]
[]
[]
[null,54,"Overige geleverde prestaties of vergoedingen",null,null,null,"Code","Financierings-\nvorm","Aantal (Q)","Prijs in € (P)","Realisatie 2017 in €\n",null," "]
[null,5400,"Subsidiabele kosten ",null,null,null,null,null,null,null,{"$f":"I194*J194","v":0}]
[null,5401,"Lumpsum ",null,null,null,null,null,null,null,{"$f":"I195*J195","v":0}]
[null,5402,"Correcties",null,null,null,null,null,null,null,{"$f":"I196*J196","v":0}]
[null,5499]
[null,null,"Totaal Overige geleverde prestaties of vergoedingen",null,null,null,null,null,null,null,{"$f":"SUM(K194:K197)","v":0}]
[]
[]
[null,"55","Specialistische GGZ LTA (verblijf)",null,null,null,"Code","Eenheid","Aantal (Q)","Prijs in € (P)","Realisatie 2017 in €\n"]
[null,5500,null,null,null,null,null,null,null,null,{"$f":"I202*J202","v":0}]
[null,5501,null,null,null,null,null,null,null,null,{"$f":"I203*J203","v":0}]
[null,5599]
[null,null,"Totaal Landelijke Transitie Arrangementen",null,null,null,null,null,null,null,{"$f":"SUM(K202:K204)","v":0}]
[]
[]
[null,"56","Specialistische GGZ LTA (DBC)",null,null,null,"Code","Eenheid","Aantal (Q)","Prijs in € (P)","Realisatie 2017 in €\n"]
[null,5600,null,null,null,null,null,null,null,null,{"$f":"I209*J209","v":0}]
[null,5601,null,null,null,null,null,null,null,null,{"$f":"I210*J210","v":0}]
[null,5699]
[null,null,"Totaal Landelijke Transitie Arrangementen",null,null,null,null,null,null,null,{"$f":"SUM(K209:K211)","v":0}]
[]
[]
[null,57,"Specialitische GGZ LTA (OHW DBC)",null,null,null,null,null,null,null,"Realisatie in €"]
[null,null,"Totaal onderhanden werk per 31-12-2016"]
[null,null,"Onderhandenwerk per 31-12-2017"]
[null,null,"Mutaties onderhanden werk per 31-12-2017",null,null,null,null,null,null,null,{"$f":"K217-K216","v":0}]
[null,null,"Totaal bedrag van afgesloten DBC's in boekjaar 2017",null,null,null,null,null,null,null,{"$f":"K205+K212","v":0}]
[null,null,"Totaal omzet DBC's Landelijke Transitie Arrangementen 2017",null,null,null,null,null,null,null,{"$f":"SUM(K218+K219)","v":0}]
[]
[null,58,"Financiële realisatie Jeugdwet",null,null,null,null,null,null,null,"Totaal budget in €"]
[null,5800,"Gerealiseerde productie Jeugdwet",null,null,null,null,null,null,null,{"$f":"SUM(K25+K33+K41+K49+K56+K63+K70+K77+K92+K85+K127+K134+K99+K120+K106+K113+K198+K170+K190+K184+K155+K148+K141+K220)","v":0}]
[null,{"$f":"B223+1","v":5801},"Afgesproken budget Jeugdwet"]
[null,{"$f":"B224+1","v":5802},"Gerealiseerde omzet Jeugdwet",null,null,null,null,null,null,null,{"$f":"IF(K223>K224,K224,K223)","v":0}]
[]
[null,"Ruimte voor toelichting in verband met ongecorrigeerde afwijkingen en onzekerheden"]
[]
[]
[]
[]
[]
[]
[]
[]
[]
[]
[null,"Ruimte voor algemene toelichting"]
[]
[]
[]
[]
[]
[]
[]
[]
[]
[]
[null,"Zorgaanbieder",null,null,null,null,null,null,null,"Rapport van bevindingen:"]
[null,"(Naam & handtekening)",null,null,null,null,null,null,null,"Ja/Nee"]
[null,null,null,null,null,null,null,null,null,"A.u.b. doorhalen wat niet van toepassing is."]
[]
[]
[]
[null,"Datum: "]

{"sheet":"einde","index":6,"n_rows":0,"n_cols":0,"rows_kept":0,"cut":false,"hidden":true,"merged":[]}

{"sheet":"Productcodes","index":7,"n_rows":706,"n_cols":3,"rows_kept":706,"cut":false,"hidden":false,"merged":[]}
["IJW 2.0","JZ021 - PRODUCTCODE","CODE"]
["Versie","2017-04-01"]
[null,"Betekenis","code"]
[40,"Persoonlijke verzorging"]
[null,"Persoonlijke verzorging specialistisch: outputgericht","40A01"]
[null,"Persoonlijke verzorging regulier: outputgericht","40A02"]
[null,"Persoonlijke verzorging specialistisch: inspanningsgericht","40A03"]
[null,"Persoonlijke verzorging regulier: inspanningsgericht","40A04"]
[null,"Persoonlijke verzorging regulier: outputgericht (licht)","40A05"]
[null,"Persoonlijke verzorging regulier: outputgericht (middel)","40A06"]
[null,"Persoonlijke verzorging regulier: outputgericht (zwaar)","40A07"]
[null,"Persoonlijke verzorging specialistisch: outputgericht (licht)","40A08"]
[null,"Persoonlijke verzorging specialistisch: outputgericht (middel)","40A09"]
[null,"Persoonlijke verzorging specialistisch: outputgericht (zwaar)","40A10"]
[null,"Persoonlijke verzorging regulier: inspanningsgericht (individueel)","40A11"]
[null,"Persoonlijke verzorging regulier: inspanningsgericht (op afstand)","40A12"]
[null,"Persoonlijke verzorging specialistisch: inspanningsgericht (individueel)","40A13"]
[null,"Persoonlijke verzorging specialistisch: inspanningsgericht (op afstand)","40A14"]
[null,"Persoonlijke verzorging laag tarief: inspanningsgericht","40A15"]
[41,"Dagbehandeling"]
[null,"Dagbehandeling regulier: outputgericht","41A01"]
[null,"Dagbehandeling specialistisch: outputgericht","41A02"]
[null,"Dagbehandeling regulier: inspanningsgericht","41A03"]
[null,"Dagbehandeling specialistisch: inspanningsgericht","41A04"]
[null,"Dagbehandeling regulier: outputgericht (licht)","41A05"]
[null,"Dagbehandeling regulier: outputgericht (middel)","41A06"]
[null,"Dagbehandeling regulier: outputgericht (zwaar)","41A07"]
[null,"Dagbehandeling specialistisch: outputgericht (licht)","41A08"]
[null,"Dagbehandeling specialistisch: outputgericht (middel)","41A09"]
[null,"Dagbehandeling specialistisch: outputgericht (zwaar)","41A10"]
[null,"Dagbehandeling regulier: inspanningsgericht (licht)","41A11"]
[null,"Dagbehandeling regulier: inspanningsgericht (middel)","41A12"]
[null,"Dagbehandeling regulier: inspanningsgericht (zwaar)","41A13"]
[null,"Dagbehandeling specialistisch: inspanningsgericht (licht)","41A14"]
[null,"Dagbehandeling specialistisch: inspanningsgericht (middel)","41A15"]
[null,"Dagbehandeling specialistisch: inspanningsgericht (zwaar)","41A16"]
[null,"Dagbesteding: outputgericht","41A17"]
[null,"Dagbesteding: inspanningsgericht","41A18"]
[null,"Dagbesteding: outputgericht (licht)","41A19"]
[null,"Dagbesteding: outputgericht (middel)","41A20"]
[null,"Dagbesteding: outputgericht (zwaar)","41A21"]
[null,"Dagbesteding: inspanningsgericht (licht)","41A22"]
[null,"Dagbesteding: inspanningsgericht (middel)","41A23"]
[null,"Dagbesteding: inspanningsgericht (zwaar)","41A24"]
[null,"Dagbehandeling: outputgericht","41B00"]
[null,"Diagnostiek op eigen locatie aanbieder: outputgericht","41B01"]
[null,"Diagnostiek op locatie bij andere organisaties: outputgericht","41B02"]
[null,"Begeleiden op eigen locatie aanbieder: outputgericht","41B03"]
[null,"Begeleiden op locatie bij andere organisatie: outputgericht","41B04"]
[null,"Behandelen op eigen locatie aanbieder: outputgericht","41B05"]
[null,"Behandelen op locatie bij andere organisatie: outputgericht","41B06"]
[42,"Vervoerdiensten"]
[null,"Vervoer: outputgericht","42A01"]
[null,"Vervoer rolstoel: outputgericht","42A02"]
[null,"Vervoer: inspanningsgericht","42A03"]
[null,"Vervoer rolstoel: inspanningsgericht","42A04"]
[null,"Vervoer: outputgericht (licht)","42A05"]
[null,"Vervoer: outputgericht (middel)","42A06"]
[null,"Vervoer: outputgericht (zwaar)","42A07"]
[null,"Vervoer rolstoel: outputgericht (licht)","42A08"]
[null,"Vervoer rolstoel: outputgericht (middel)","42A09"]
[null,"Vervoer rolstoel: outputgericht (zwaar)","42A10"]
[43,"Jeugdhulp verblijf (incl. behandeling)"]
[null,"Jeugdhulp verblijf: outputgericht","43A01"]
[null,"Deeltijdverblijf: outputgericht","43A02"]
[null,"Pleegzorg: outputgericht","43A03"]
[null,"Gezinshuis: outputgericht","43A04"]
[null,"Logeren: outputgericht","43A05"]
[null,"JeugdzorgPlus: outputgericht","43A06"]
[null,"Jeugdhulp verblijf: inspanningsgericht","43A07"]
[null,"Deeltijdverblijf: inspanningsgericht","43A08"]
[null,"Pleegzorg: inspanningsgericht","43A09"]
[null,"Gezinshuis: inspanningsgericht","43A10"]
[null,"Logeren: inspanningsgericht","43A11"]
[null,"JeugdzorgPlus: inspanningsgericht","43A12"]
[null,"JSLVG: inspanningsgericht","43A13"]
[null,"Observatie: inspanningsgericht","43A14"]
[null,"Jeugdhulp verblijf: outputgericht (licht)","43A15"]
[null,"Jeugdhulp verblijf: outputgericht (middel)","43A16"]
[null,"Jeugdhulp verblijf: outputgericht (middelzwaar)","43A17"]
[null,"Jeugdhulp verblijf: outputgericht (zwaar)","43A18"]
[null,"Jeugdhulp verblijf: outputgericht (extra zwaar)","43A19"]
[null,"Deeltijdverblijf: outputgericht (licht)","43A20"]
[null,"Deeltijdverblijf: outputgericht (middel)","43A21"]
[null,"Deeltijdverblijf: outputgericht (zwaar)","43A22"]
[null,"Pleegzorg: outputgericht (deeltijd)","43A23"]
[null,"Pleegzorg: outputgericht (voltijd)","43A24"]
[null,"Pleegzorg: outputgericht (vakantie)","43A25"]
[null,"Pleegzorg specialistisch: outputgericht (deeltijd)","43A26"]
[null,"Pleegzorg specialistisch: outputgericht (voltijd)","43A27"]
[null,"Pleegzorg specialistisch: outputgericht (vakantie)","43A28"]
[null,"Gezinshuis: outputgericht (licht)","43A29"]
[null,"Gezinshuis: outputgericht (middel)","43A30"]
[null,"Gezinshuis: outputgericht (zwaar)","43A31"]
[null,"Logeren: outputgericht (licht)","43A32"]
[null,"Logeren: outputgericht (middel)","43A33"]
[null,"Logeren: outputgericht (zwaar)","43A34"]
[null,"Jeugdhulp verblijf: inspanningsgericht (licht)","43A35"]
[null,"Jeugdhulp verblijf: inspanningsgericht (middel)","43A36"]
[null,"Jeugdhulp verblijf: inspanningsgericht (middelzwaar)","43A37"]
[null,"Jeugdhulp verblijf: inspanningsgericht (zwaar)","43A38"]
[null,"Jeugdhulp verblijf: inspanningsgericht (extra zwaar)","43A39"]
[null,"Deeltijdverblijf: inspanningsgericht (licht)","43A40"]
[null,"Deeltijdverblijf: inspanningsgericht (middel)","43A41"]
[null,"Deeltijdverblijf: inspanningsgericht (zwaar)","43A42"]
[null,"ZZP LVG: inspanningsgericht (licht)","43A43"]
[null,"ZZP LVG: inspanningsgericht (middel)","43A44"]
[null,"ZZP LVG: inspanningsgericht (middelzwaar)","43A45"]
[null,"ZZP LVG: inspanningsgericht (zwaar)","43A46"]
[null,"ZZP LVG: inspanningsgericht (extra zwaar)","43A47"]
[null,"Observatie: inspanningsgericht (licht)","43A48"]
[null,"Observatie: inspanningsgericht (middel)","43A49"]
[null,"Observatie: inspanningsgericht (zwaar)","43A50"]
[null,"Per dag ZZP 3VG incl.BH excl.DB","43A51"]
[null,"Per dag ZZP 3VG incl.BH incl.DB","43A52"]
[null,"Per dag ZZP 1LVG incl.BH incl.DB","43A53"]
[null,"Per dag ZZP 2LVG incl.BH incl.DB","43A54"]
[null,"Per dag ZZP 3LVG incl.BH incl.DB","43A55"]
[null,"Per dag ZZP 4LVG incl.BH incl.DB","43A56"]
[null,"Per dag ZZP 5LVG incl.BH incl.DB","43A57"]
[null,"NHC","43A58"]
[null,"NIC","43A59"]
[null,"Pleegzorg geestelijk gehandicapten: outputgericht","43A60"]
[null,"Pleegzorg lichamelijk gehandicapten: outputgericht","43A61"]
[null,"Pleegzorg: inspanningsgericht (weekend)","43A62"]
[null,"Pleegzorg: inspanningsgericht (jonger dan 12 jaar)","43A63"]
[null,"Jeugdzorg plus jonger dan 12 jaar: inspanningsgericht","43A64"]
[null,"Afwezigheidsdag: inspanningsgericht","43A65"]
[null,"Pleegzorg: outputgericht","43B00"]
[null,"Gezinsgericht: outputgericht","43B01"]
[null,"Gesloten plaatsing: outputgericht","43B02"]
[null,"Verblijf anders: outputgericht","43B03"]
[null,"Diagnostiek verblijf anders fulltime: outputgericht","43B04"]
[null,"Diagnostiek verblijf anders hulpverlener parttime aanwezig: outputgericht","43B05"]
[null,"Diagnostiek verblijf anders cliënt parttime aanwezig: outputgericht","43B06"]
[null,"Diagnostiek verblijf anders driemilieuvoorziening: outputgericht","43B07"]
[null,"Behandelen met pleegzorg fulltime: outputgericht","43B08"]
[null,"Behandelen met pleegzorg parttime: outputgericht","43B09"]
[null,"Behandelen gezinsgericht fulltime: outputgericht","43B10"]
[null,"Behandelen gezinsgericht parttime: outputgericht","43B11"]
[null,"Gesloten plaatsing: hulp bij voorwaardelijke machtiging gesloten jeugdhulp en schorsing: outputgericht","43B12"]
[null,"Gesloten plaatsing: 24 uurs hulp onder machtiging gesloten jeugdhulp: outputgericht","43B13"]
[null,"Gesloten plaatsing: opname BOPZ: outputgericht","43B14"]
[null,"Gesloten plaatsing: traject Jeugdzorgplus: outputgericht","43B15"]
[null,"Behandelen verblijf anders fulltime: outputgericht","43B16"]
[null,"Behandelen verblijf anders hulpverlener parttime aanwezig: outputgericht","43B17"]
[null,"Behandelen verblijf anders cliënt parttime aanwezig: outputgericht","43B18"]
[null,"Behandelen verblijf anders driemilieuvoorziening: outputgericht","43B19"]
[44,"Jeugdhulp verblijf (excl. Behandeling)"]
[null,"Jeugdhulp verblijf: outputgericht","44A01"]
[null,"Deeltijdverblijf: outputgericht","44A02"]
[null,"Pleegzorg: outputgericht","44A03"]
[null,"Gezinshuis: outputgericht","44A04"]
[null,"Logeren: outputgericht","44A05"]
[null,"Jeugdhulp verblijf: inspanningsgericht","44A06"]
[null,"Pleegzorg: inspanningsgericht","44A07"]
[null,"Gezinshuis: inspanningsgericht","44A08"]
[null,"Logeren: inspanningsgericht","44A09"]
[null,"Jeugdhulp verblijf: outputgericht (licht)","44A10"]
[null,"Jeugdhulp verblijf: outputgericht (middel)","44A11"]
[null,"Jeugdhulp verblijf: outputgericht (middelzwaar)","44A12"]
[null,"Jeugdhulp verblijf: outputgericht (zwaar)","44A13"]
[null,"Jeugdhulp verblijf: outputgericht (extra zwaar)","44A14"]
[null,"Deeltijdverblijf: outputgericht (licht)","44A15"]
[null,"Deeltijdverblijf: outputgericht (middel)","44A16"]
[null,"Deeltijdverblijf: outputgericht (zwaar)","44A17"]
[null,"Pleegzorg: outputgericht (deeltijd)","44A18"]
[null,"Pleegzorg: outputgericht (voltijd)","44A19"]
[null,"Pleegzorg: outputgericht (vakantie)","44A20"]
[null,"Gezinshuis: outputgericht (licht)","44A21"]
[null,"Gezinshuis: outputgericht (middel)","44A22"]
[null,"Gezinshuis: outputgericht (zwaar)","44A23"]
[null,"Logeren: outputgericht (licht)","44A24"]
[null,"Logeren: outputgericht (middel)","44A25"]
[null,"Logeren: outputgericht (zwaar)","44A26"]
[null,"Jeugdhulp verblijf: inspanningsgericht (licht)","44A27"]
[null,"Jeugdhulp verblijf: inspanningsgericht (middel)","44A28"]
[null,"Jeugdhulp verblijf: inspanningsgericht (middelzwaar)","44A29"]
[null,"Jeugdhulp verblijf: inspanningsgericht (zwaar)","44A30"]
[null,"Jeugdhulp verblijf: inspanningsgericht (extra zwaar)","44A31"]
[null,"Deeltijdverblijf: inspanningsgericht (licht)","44A32"]
[null,"Deeltijdverblijf: inspanningsgericht (middel)","44A33"]
[null,"Deeltijdverblijf: inspanningsgericht (zwaar)","44A34"]
[null,"Per dag ZZP 1VG excl. DB","44A35"]
[null,"Per dag ZZP 2VG excl. DB","44A36"]
[null,"Per dag ZZP 3VG excl.BH excl.DB","44A37"]
[null,"Per dag ZZP 1VG incl. DB","44A38"]
[null,"Per dag ZZP 2VG incl. DB","44A39"]
[null,"Per dag ZZP 3VG excl.BH incl.DB","44A40"]
[null,"Per dag ZZP V&V verblijf niet-geindiceerd","44A41"]
[null,"Per dag ZZP GGZ verblijfscomponent","44A42"]
[null,"Per dag ZZP VG&LG verblijfscomponent","44A43"]
[null,"Per dag ZZP ZG verblijfscomponent","44A44"]
[null,"Logeren specialistisch: inspanningsgericht","44A45"]
[null,"Afwezigheidsdag: inspanningsgericht","44A46"]
[null,"Per dag VPT 1GGZ-C excl.BH excl.DB","44A47"]
[null,"Per dag VPT 1GGZ-C excl.BH incl.DB","44A48"]
[null,"Per dag VPT 2GGZ-C excl.BH excl.DB","44A49"]
[null,"Per dag VPT 2GGZ-C excl.BH incl.DB","44A50"]
[null,"Per dag VPT 3GGZ-C excl.BH excl.DB","44A51"]
[null,"Per dag VPT 3GGZ-C excl.BH incl.DB","44A52"]
[null,"Per dag VPT 4GGZ-C excl.BH excl.DB","44A53"]
[null,"Per dag VPT 4GGZ-C excl.BH incl.DB","44A54"]
[null,"Per dag VPT 5GGZ-C excl.BH excl.DB","44A55"]
[null,"Per dag VPT 5GGZ-C excl.BH incl.DB","44A56"]
[null,"Per dag VPT 6GGZ-C excl.BH excl.DB","44A57"]
[null,"Per dag VPT 6GGZ-C excl.BH incl.DB","44A58"]
[null,"Per dag ZZP 1GGZ-C excl.BH excl.DB ","44A59"]
[null,"Per dag ZZP 1GGZ-C excl.BH incl.DB ","44A60"]
[null,"Per dag ZZP 2GGZ-C excl.BH excl.DB ","44A61"]
[null,"Per dag ZZP 2GGZ-C excl.BH incl.DB ","44A62"]
[null,"Per dag ZZP 3GGZ-C excl.BH excl.DB ","44A63"]
[null,"Per dag ZZP 3GGZ-C excl.BH incl.DB ","44A64"]
[null,"Per dag ZZP 4GGZ-C excl.BH excl.DB ","44A65"]
[null,"Per dag ZZP 4GGZ-C excl.BH incl.DB ","44A66"]
[null,"Per dag ZZP 5GGZ-C excl.BH excl.DB ","44A67"]
[null,"Per dag ZZP 5GGZ-C excl.BH incl.DB ","44A68"]
[null,"Per dag ZZP 6GGZ-C excl.BH excl.DB ","44A69"]
[null,"Per dag ZZP 6GGZ-C excl.BH incl.DB ","44A70"]
[null,"Pleegzorg: outputgericht","44B00"]
[null,"Gezinsgericht: outputgericht","44B01"]
[null,"Begeleiden pleegzorg fulltime: outputgericht","44B02"]
[null,"Begeleiden pleegzorg parttime: outputgericht","44B03"]
[null,"Begeleiden gezinsgericht fulltime: outputgericht","44B04"]
[null,"Begeleiden gezinsgericht parttime: outputgericht","44B05"]
[45,"Jeugdhulp ambulant"]
[null,"Jeugdhulp ambulant regulier: outputgericht","45A01"]
[null,"Jeugdhulp ambulant specialistisch: outputgericht","45A02"]
[null,"Diagnostiek: outputgericht","45A03"]
[null,"Jeugdhulp ambulant regulier: inspanningsgericht","45A04"]
[null,"Jeugdhulp ambulant specialistisch: inspanningsgericht","45A05"]
[null,"Jeugdhulp ambulant diagnostiek: inspanningsgericht","45A06"]
[null,"Jeugdhulp ambulant regulier: outputgericht (licht)","45A07"]
[null,"Jeugdhulp ambulant regulier: outputgericht (middel)","45A08"]
[null,"Jeugdhulp ambulant regulier: outputgericht (zwaar)","45A09"]
[null,"Jeugdhulp ambulant regulier: outputgericht (individueel)","45A10"]
[null,"Jeugdhulp ambulant regulier: outputgericht (groep)","45A11"]
[null,"Jeugdhulp ambulant regulier: outputgericht (gezin/systeem)","45A12"]
[null,"Jeugdhulp ambulant regulier: outputgericht (op locatie)","45A13"]
[null,"Jeugdhulp ambulant specialistisch: outputgericht (licht)","45A14"]
[null,"Jeugdhulp ambulant specialistisch: outputgericht (middel)","45A15"]
[null,"Jeugdhulp ambulant specialistisch: outputgericht (zwaar)","45A16"]
[null,"Jeugdhulp ambulant specialistisch: outputgericht (individueel)","45A17"]
[null,"Jeugdhulp ambulant specialistisch: outputgericht (groep)","45A18"]
[null,"Jeugdhulp ambulant specialistisch: outputgericht (gezin/systeem)","45A19"]
[null,"Jeugdhulp ambulant specialistisch: outputgericht (op locatie)","45A20"]
[null,"Jeugdhulp ambulant regulier: outputgericht (licht & individueel)","45A21"]
[null,"Jeugdhulp ambulant regulier: outputgericht (middel & individueel)","45A22"]
[null,"Jeugdhulp ambulant regulier: outputgericht (zwaar & individueel)","45A23"]
[null,"Jeugdhulp ambulant regulier: outputgericht (licht & groep)","45A24"]
[null,"Jeugdhulp ambulant regulier: outputgericht (middel & groep)","45A25"]
[null,"Jeugdhulp ambulant regulier: outputgericht (zwaar & groep)","45A26"]
[null,"Jeugdhulp ambulant regulier: outputgericht (licht & gezin/systeem)","45A27"]
[null,"Jeugdhulp ambulant regulier: outputgericht (middel & gezin/systeem)","45A28"]
[null,"Jeugdhulp ambulant regulier: outputgericht (zwaar & gezin/systeem)","45A29"]
[null,"Jeugdhulp ambulant regulier: outputgericht (licht & op locatie)","45A30"]
[null,"Jeugdhulp ambulant regulier: outputgericht (middel & op locatie)","45A31"]
[null,"Jeugdhulp ambulant regulier: outputgericht (zwaar & op locatie)","45A32"]
[null,"Jeugdhulp ambulant specialistisch: outputgericht (licht & individueel)","45A33"]
[null,"Jeugdhulp ambulant specialistisch: outputgericht (middel & individueel)","45A34"]
[null,"Jeugdhulp ambulant specialistisch: outputgericht (zwaar & individueel)","45A35"]
[null,"Jeugdhulp ambulant specialistisch: outputgericht (licht & groep)","45A36"]
[null,"Jeugdhulp ambulant specialistisch: outputgericht (middel & groep)","45A37"]
[null,"Jeugdhulp ambulant specialistisch: outputgericht (zwaar & groep)","45A38"]
[null,"Jeugdhulp ambulant specialistisch: outputgericht (licht & gezin/systeem)","45A39"]
[null,"Jeugdhulp ambulant specialistisch: outputgericht (middel & gezin/systeem)","45A40"]
[null,"Jeugdhulp ambulant specialistisch: outputgericht (zwaar & gezin/systeem)","45A41"]
[null,"Jeugdhulp ambulant specialistisch: outputgericht (licht & op locatie)","45A42"]
[null,"Jeugdhulp ambulant specialistisch: outputgericht (middel & op locatie)","45A43"]
[null,"Jeugdhulp ambulant specialistisch: outputgericht (zwaar & op locatie)","45A44"]
[null,"Jeugdhulp ambulant diagnostiek: outputgericht (licht)","45A45"]
[null,"Jeugdhulp ambulant diagnostiek: outputgericht (middel)","45A46"]
[null,"Jeugdhulp ambulant diagnostiek: outputgericht (zwaar)","45A47"]
[null,"Jeugdhulp ambulant regulier: inspanningsgericht (individueel)","45A48"]
[null,"Jeugdhulp ambulant regulier: inspanningsgericht (groep)","45A49"]
[null,"Jeugdhulp ambulant regulier: inspanningsgericht (op afstand)","45A50"]
[null,"Jeugdhulp ambulant regulier: inspanningsgericht (gezin/systeem)","45A51"]
[null,"Jeugdhulp ambulant regulier: inspanningsgericht (op locatie)","45A52"]
[null,"Jeugdhulp ambulant specialistisch: inspanningsgericht (individueel)","45A53"]
[null,"Jeugdhulp ambulant specialistisch: inspanningsgericht (groep)","45A54"]
[null,"Jeugdhulp ambulant specialistisch: inspanningsgericht (op afstand)","45A55"]
[null,"Jeugdhulp ambulant specialistisch: inspanningsgericht (gezin/systeem)","45A56"]
[null,"Jeugdhulp ambulant specialistisch: inspanningsgericht (op locatie)","45A57"]
[null,"Per dag Toeslag ZZP MFC","45A58"]
[null,"Per dag Toeslag ZZP Observatie","45A59"]
[null,"Per dag Toeslag ZZP woonzorg GHZ kind","45A60"]
[null,"Per dag Toeslag ZZP woonzorg GHZ jeugd","45A61"]
[null,"Per dagdeel Toeslag ZZP dagb.","45A62"]
[null,"Jeugdhulp ambulant laag tarief: inspanningsgericht","45A63"]
[null,"Behandeling: outputgericht","45A64"]
[null,"Behandeling: inspanningsgericht","45A65"]
[null,"Behandeling: outputgericht (licht)","45A66"]
[null,"Behandeling: outputgericht (middel)","45A67"]
[null,"Behandeling: outputgericht (zwaar)","45A68"]
[null,"Behandeling: inspanningsgericht (op locatie)","45A69"]
[null,"Ambulante Jeugdhulp: outputgericht","45B00"]
[null,"Diagnostiek in jeugd/wijkteam individu: outputgericht","45B01"]
[null,"Diagnostiek in jeugd/wijkteam gezin: outputgericht","45B02"]
[null,"Diagnostiek in jeugd/wijkteam groep: outputgericht","45B03"]
[null,"Diagnostiek ambulant op locatie aanbieder individu: outputgericht","45B04"]
[null,"Diagnostiek ambulant op locatie aanbieder gezin: outputgericht","45B05"]
[null,"Diagnostiek ambulant op locatie aanbieder groep: outputgericht","45B06"]
[null,"Diagnostiek in netwerk jeugdige individu: outputgericht","45B07"]
[null,"Diagnostiek in netwerk jeugdige gezin: outputgericht","45B08"]
[null,"Diagnostiek in netwerk jeugdige groep: outputgericht","45B09"]
[null,"Begeleiden in jeugd/wijkteam individu: outputgericht","45B10"]
[null,"Begeleiden in jeugd/wijkteam gezin: outputgericht","45B11"]
[null,"Begeleiden in jeugd/wijkteam groep: outputgericht","45B12"]
[null,"Begeleiden ambulant op locatie aanbieder individu: outputgericht","45B13"]
[null,"Begeleiden ambulant op locatie aanbieder gezin: outputgericht","45B14"]
[null,"Begeleiden ambulant op locatie aanbieder groep: outputgericht","45B15"]
[null,"Begeleiden in netwerk jeugdige individu: outputgericht","45B16"]
[null,"Begeleiden in netwerk jeugdige gezin: outputgericht","45B17"]
[null,"Begeleiden in netwerk jeugdige groep: outputgericht","45B18"]
[null,"Behandelen in jeugd/wijkteam individu: outputgericht","45B19"]
[null,"Behandelen in jeugd/wijkteam gezin: outputgericht","45B20"]
[null,"Behandelen in jeugd/wijkteam groep: outputgericht","45B21"]
[null,"Behandelen ambulant op locatie aanbieder individu: outputgericht","45B22"]
[null,"Behandelen ambulant op locatie aanbieder gezin: outputgericht","45B23"]
[null,"Behandelen ambulant op locatie aanbieder groep: outputgericht","45B24"]
[null,"Behandelen in netwerk jeugdige individu: outputgericht","45B25"]
[null,"Behandelen in netwerk jeugdige gezin: outputgericht","45B26"]
[null,"Behandelen in netwerk jeugdige groep: outputgericht","45B27"]
[46,"Jeugdhulp crisis"]
[null,"Jeugdhulp crisis: outputgericht","46A00"]
[null,"Jeugdhulp crisis ambulant: inspanningsgericht","46A01"]
[null,"Jeugdhulp crisis Gezinshuis: inspanningsgericht","46A02"]
[null,"Jeugdhulp crisis verblijf: inspanningsgericht","46A03"]
[null,"Jeugdhulp crisis verblijf (excl. beh.): inspanningsgericht","46A04"]
[null,"Jeugdhulp crisis pleegzorg: inspanningsgericht","46A05"]
[null,"Jeugdhulp crisis: outputgericht","46B00"]
[null,"Jeugdhulp crisis ambulant: outputgericht","46B01"]
[null,"Jeugdhulp crisis gezinshuis: outputgericht","46B02"]
[null,"Jeugdhulp crisis verblijf (incl. behandeling): outputgericht","46B03"]
[null,"Jeugdhulp crisis verblijf (excl. behandeling): outputgericht","46B04"]
[null,"Jeugdhulp crisis pleegzorg: outputgericht","46B05"]
[47,"Jeugdreclassering"]
[null,"Jeugdreclassering: outputgericht","47A01"]
[null,"Voorbereiding gedragsbeïnvloedende maatregel: outputgericht","47A02"]
[null,"Gedragsbeïnvloedende maatregel: outputgericht","47A03"]
[null,"ITB-Criem: outputgericht","47A04"]
[null,"ITB-Harde kern: outputgericht","47A05"]
[null,"Samenloop: outputgericht","47A06"]
[null,"STP training- en scholingsprogramma: outputgericht","47A07"]
[null,"Jeugdreclassering: outputgericht (licht)","47A08"]
[null,"Jeugdreclassering: outputgericht (middel)","47A09"]
[null,"Jeugdreclassering: outputgericht (zwaar)","47A10"]
[null,"Toezicht en begeleiding: outputgericht","47B00"]
[null,"Voorbereiding gedrag beïnvloedende maatregel: outputgericht ","47B01"]
[null,"Gedrag beïnvloedende maatregel: outputgericht ","47B02"]
[null,"Individuele trajectbegeleiding CRIEM: outputgericht ","47B03"]
[null,"Individuele trajectbegeleiding Harde Kern: outputgericht","47B04"]
[null,"Samenloop: outputgericht","47B05"]
[null,"Scholings- en trainingsprogramma: outputgericht","47B06"]
[48,"Jeugdbescherming"]
[null,"Jeugdbescherming: outputgericht","48A00"]
[null,"Ondertoezichtstelling jaar 1: outputgericht","48A01"]
[null,"Ondertoezichtstelling jaar 2 en verder: outputgericht","48A02"]
[null,"Voogdij: outputgericht","48A03"]
[null,"Ondertoezichtstelling jaar 1: inspanningsgericht","48A04"]
[null,"Ondertoezichtstelling jaar 2 en verder: inspanningsgericht","48A05"]
[null,"Voogdij: inspanningsgericht","48A06"]
[null,"Ondertoezichtstelling jaar 1: outputgericht","48B00"]
[null,"Ondertoezichtstelling jaar 2 en verder: outputgericht","48B01"]
[null,"Voogdij: outputgericht","48B02"]
[49,"Activiteiten in het preventief justitieel kader"]
[null,"Activiteiten in het preventief justitieel kader: inspanningsgericht","49A01"]
[null,"Activiteiten in het preventief justitieel kader: outputgericht","49A02"]
[null,"Activiteiten in het preventief justitieel kader: outputgericht(licht)","49A03"]
[null,"Activiteiten in het preventief justitieel kader: outputgericht(middel)","49A04"]
[null,"Activiteiten in het preventief justitieel kader: outputgericht(zwaar)","49A05"]
[null,"Begeleiding toezicht: outputgericht","49A06"]
[null,"Activiteiten in het preventief kader: outputgericht","49B00"]
[null,"Advies/consult: outputgericht","49B01"]
[null,"Drang/casusregie: outputgericht","49B02"]
[null,"Crisisinterventie: outputgericht","49B03"]
[null,"Nazorg: outputgericht","49B04"]
[null,"Overig: Raadsmelding: outputgericht","49B05"]
[null,"Overig: Zorgmelding/SAVE-onderzoek: outputgericht","49B06"]
[null,"Overig: Begeleiding toeleiding gesloten jeugdzorg: outputgericht","49B07"]
[50,"Maatwerkarrangementen jeugd"]
[null,"Maatwerkarrangementen Jeugdwet: outputgericht","50A00"]
[null,"Zelfstandig leven","50A01"]
[null,"Maatschappelijke deelname","50A02"]
[null,"Zelfstandig leven 1 (licht): outputgericht","50A03"]
[null,"Zelfstandig leven 1 (middel): outputgericht","50A04"]
[null,"Zelfstandig leven 1 (middelzwaar): outputgericht","50A05"]
[null,"Zelfstandig leven 1 (zwaar): outputgericht","50A06"]
[null,"Zelfstandig leven 1 (extra zwaar): outputgericht","50A07"]
[null,"Maatschappelijke deelname 1 (licht): outputgericht","50A08"]
[null,"Maatschappelijke deelname 1 (middel): outputgericht","50A09"]
[null,"Maatschappelijke deelname 1 (middelzwaar): outputgericht","50A10"]
[null,"Maatschappelijke deelname 1 (zwaar): outputgericht","50A11"]
[null,"Maatschappelijke deelname 1 (extra zwaar): outputgericht","50A12"]
[null,"Zelfstandig leven 2 (licht): outputgericht","50A13"]
[null,"Zelfstandig leven 2 (middel): outputgericht","50A14"]
[null,"Zelfstandig leven 2 (middelzwaar): outputgericht","50A15"]
[null,"Zelfstandig leven 2 (zwaar): outputgericht","50A16"]
[null,"Zelfstandig leven 2 (extra zwaar): outputgericht","50A17"]
[null,"Zelfstandig leven 3 (licht): outputgericht","50A18"]
[null,"Zelfstandig leven 3 (middel): outputgericht","50A19"]
[null,"Zelfstandig leven 3 (middelzwaar): outputgericht","50A20"]
[null,"Zelfstandig leven 3 (zwaar): outputgericht","50A21"]
[null,"Zelfstandig leven 3 (extra zwaar): outputgericht","50A22"]
[null,"Maatschappelijke deelname 2 (licht): outputgericht","50A23"]
[null,"Maatschappelijke deelname 2 (middel): outputgericht","50A24"]
[null,"Maatschappelijke deelname 2 (middelzwaar): outputgericht","50A25"]
[null,"Maatschappelijke deelname 2 (zwaar): outputgericht","50A26"]
[null,"Maatschappelijke deelname 2 (extra zwaar): outputgericht","50A27"]
[null,"Maatschappelijke deelname 3 (licht): outputgericht","50A28"]
[null,"Maatschappelijke deelname 3 (middel): outputgericht","50A29"]
[null,"Maatschappelijke deelname 3 (middelzwaar): outputgericht","50A30"]
[null,"Maatschappelijke deelname 3 (zwaar): outputgericht","50A31"]
[null,"Maatschappelijke deelname 3 (extra zwaar): outputgericht","50A32"]
[null,"Profiel 1 Laagcomplex Intensief: outputgericht","P5001"]
[null,"Profiel 1 Laagcomplex Perspectief: outputgericht","P5002"]
[null,"Profiel 1 Laagcomplex Duurzaam Licht: outputgericht","P5003"]
[null,"Profiel 1 Laagcomplex Duurzaam Zwaar: outputgericht","P5004"]
[null,"Profiel 1 Laagcomplex Acuut: outputgericht","P5005"]
[null,"Profiel 1 Hoogcomplex Intensief: outputgericht","P5006"]
[null,"Profiel 1 Hoogcomplex Perspectief: outputgericht","P5007"]
[null,"Profiel 1 Hoogcomplex Duurzaam Licht: outputgericht","P5008"]
[null,"Profiel 1 Hoogcomplex Duurzaam Zwaar: outputgericht","P5009"]
[null,"Profiel 1 Hoogcomplex Acuut: outputgericht","P5010"]
[null,"Profiel 2 Laagcomplex Intensief: outputgericht","P5016"]
[null,"Profiel 2 Laagcomplex Perspectief: outputgericht","P5017"]
[null,"Profiel 2 Laagcomplex Duurzaam Licht: outputgericht","P5018"]
[null,"Profiel 2 Laagcomplex Duurzaam Zwaar: outputgericht","P5019"]
[null,"Profiel 2 Laagcomplex Acuut: outputgericht","P5020"]
[null,"Profiel 2 Hoogcomplex Intensief: outputgericht","P5021"]
[null,"Profiel 2 Hoogcomplex Perspectief: outputgericht","P5022"]
[null,"Profiel 2 Hoogcomplex Duurzaam Licht: outputgericht","P5023"]
[null,"Profiel 2 Hoogcomplex Duurzaam Zwaar: outputgericht","P5024"]
[null,"Profiel 2 Hoogcomplex Acuut: outputgericht","P5025"]
[null,"Profiel 3 Laagcomplex Intensief: outputgericht","P5031"]
[null,"Profiel 3 Laagcomplex Perspectief: outputgericht","P5032"]
[null,"Profiel 3 Laagcomplex Duurzaam Licht: outputgericht","P5033"]
[null,"Profiel 3 Laagcomplex Duurzaam Zwaar: outputgericht","P5034"]
[null,"Profiel 3 Laagcomplex Acuut: outputgericht","P5035"]
[null,"Profiel 3 Hoogcomplex Intensief: outputgericht","P5036"]
[null,"Profiel 3 Hoogcomplex Perspectief: outputgericht","P5037"]
[null,"Profiel 3 Hoogcomplex Duurzaam Licht: outputgericht","P5038"]
[null,"Profiel 3 Hoogcomplex Duurzaam Zwaar: outputgericht","P5039"]
[null,"Profiel 3 Hoogcomplex Acuut: outputgericht","P5040"]
[null,"Profiel 4 Laagcomplex Intensief: outputgericht","P5046"]
[null,"Profiel 4 Laagcomplex Perspectief: outputgericht","P5047"]
[null,"Profiel 4 Laagcomplex Duurzaam Licht: outputgericht","P5048"]
[null,"Profiel 4 Laagcomplex Duurzaam Zwaar: outputgericht","P5049"]
[null,"Profiel 4 Laagcomplex Acuut: outputgericht","P5050"]
[null,"Profiel 4 Hoogcomplex Intensief: outputgericht","P5051"]
[null,"Profiel 4 Hoogcomplex Perspectief: outputgericht","P5052"]
[null,"Profiel 4 Hoogcomplex Duurzaam Licht: outputgericht","P5053"]
[null,"Profiel 4 Hoogcomplex Duurzaam Zwaar: outputgericht","P5054"]
[null,"Profiel 4 Hoogcomplex Acuut: outputgericht","P5055"]
[null,"Profiel 5 Laagcomplex Intensief: outputgericht","P5061"]
[null,"Profiel 5 Laagcomplex Perspectief: outputgericht","P5062"]
[null,"Profiel 5 Laagcomplex Duurzaam Licht: outputgericht","P5063"]
[null,"Profiel 5 Laagcomplex Duurzaam Zwaar: outputgericht","P5064"]
[null,"Profiel 5 Laagcomplex Acuut: outputgericht","P5065"]
[null,"Profiel 5 Hoogcomplex Intensief: outputgericht","P5066"]
[null,"Profiel 5 Hoogcomplex Perspectief: outputgericht","P5067"]
[null,"Profiel 5 Hoogcomplex Duurzaam Licht: outputgericht","P5068"]
[null,"Profiel 5 Hoogcomplex Duurzaam Zwaar: outputgericht","P5069"]
[null,"Profiel 5 Hoogcomplex Acuut: outputgericht","P5070"]
[null,"Profiel 6 Laagcomplex Intensief: outputgericht","P5076"]
[null,"Profiel 6 Laagcomplex Perspectief: outputgericht","P5077"]
[null,"Profiel 6 Laagcomplex Duurzaam Licht: outputgericht","P5078"]
[null,"Profiel 6 Laagcomplex Duurzaam Zwaar: outputgericht","P5079"]
[null,"Profiel 6 Laagcomplex Acuut: outputgericht","P5080"]
[null,"Profiel 6 Hoogcomplex Intensief: outputgericht","P5081"]
[null,"Profiel 6 Hoogcomplex Perspectief: outputgericht","P5082"]
[null,"Profiel 6 Hoogcomplex Duurzaam Licht: outputgericht","P5083"]
[null,"Profiel 6 Hoogcomplex Duurzaam Zwaar: outputgericht","P5084"]
[null,"Profiel 6 Hoogcomplex Acuut: outputgericht","P5085"]
[null,"Profiel 7 Laagcomplex Intensief: outputgericht","P5091"]
[null,"Profiel 7 Laagcomplex Perspectief: outputgericht","P5092"]
[null,"Profiel 7 Laagcomplex Duurzaam Licht: outputgericht","P5093"]
[null,"Profiel 7 Laagcomplex Duurzaam Zwaar: outputgericht","P5094"]
[null,"Profiel 7 Laagcomplex Acuut: outputgericht","P5095"]
[null,"Profiel 7 Hoogcomplex Intensief: outputgericht","P5096"]
[null,"Profiel 7 Hoogcomplex Perspectief: outputgericht","P5097"]
[null,"Profiel 7 Hoogcomplex Duurzaam Licht: outputgericht","P5098"]
[null,"Profiel 7 Hoogcomplex Duurzaam Zwaar: outputgericht","P5099"]
[null,"Profiel 7 Hoogcomplex Acuut: outputgericht","P5100"]
[null,"Profiel 8 Laagcomplex Intensief: outputgericht","P5106"]
[null,"Profiel 8 Laagcomplex Perspectief: outputgericht","P5107"]
[null,"Profiel 8 Laagcomplex Duurzaam Licht: outputgericht","P5108"]
[null,"Profiel 8 Laagcomplex Duurzaam Zwaar: outputgericht","P5109"]
[null,"Profiel 8 Laagcomplex Acuut: outputgericht","P5110"]
[null,"Profiel 8 Hoogcomplex Intensief: outputgericht","P5111"]
[null,"Profiel 8 Hoogcomplex Perspectief: outputgericht","P5112"]
[null,"Profiel 8 Hoogcomplex Duurzaam Licht: outputgericht","P5113"]
[null,"Profiel 8 Hoogcomplex Duurzaam Zwaar: outputgericht","P5114"]
[null,"Profiel 8 Hoogcomplex Acuut: outputgericht","P5115"]
[null,"Profiel 9 Laagcomplex Intensief: outputgericht","P5121"]
[null,"Profiel 9 Laagcomplex Perspectief: outputgericht","P5122"]
[null,"Profiel 9 Laagcomplex Duurzaam Licht: outputgericht","P5123"]
[null,"Profiel 9 Laagcomplex Duurzaam Zwaar: outputgericht","P5124"]
[null,"Profiel 9 Laagcomplex Acuut: outputgericht","P5125"]
[null,"Profiel 9 Hoogcomplex Intensief: outputgericht","P5126"]
[null,"Profiel 9 Hoogcomplex Perspectief: outputgericht","P5127"]
[null,"Profiel 9 Hoogcomplex Duurzaam Licht: outputgericht","P5128"]
[null,"Profiel 9 Hoogcomplex Duurzaam Zwaar: outputgericht","P5129"]
[null,"Profiel 9 Hoogcomplex Acuut: outputgericht","P5130"]
[null,"Profiel 10 Laagcomplex Intensief: outputgericht","P5136"]
[null,"Profiel 10 Laagcomplex Perspectief: outputgericht","P5137"]
[null,"Profiel 10 Laagcomplex Duurzaam Licht: outputgericht","P5138"]
[null,"Profiel 10 Laagcomplex Duurzaam Zwaar: outputgericht","P5139"]
[null,"Profiel 10 Hoogcomplex Intensief: outputgericht","P5140"]
[null,"Profiel 10 Hoogcomplex Perspectief: outputgericht","P5141"]
[null,"Profiel 10 Hoogcomplex Duurzaam Licht: outputgericht","P5142"]
[null,"Profiel 10 Hoogcomplex Duurzaam Zwaar: outputgericht","P5143"]
[null,"Profiel 11 Laagcomplex Intensief: outputgericht","P5151"]
[null,"Profiel 11 Laagcomplex Perspectief: outputgericht","P5152"]
[null,"Profiel 11 Hoogcomplex Duurzaam Licht: outputgericht","P5153"]
[null,"Profiel 11 Hoogcomplex Duurzaam Zwaar: outputgericht","P5154"]
[51,"Generalistische basis-ggz"]
[null,"Kort","51A00"]
[null,"Middel","51A01"]
[null,"Chronisch","51A02"]
[null,"Intensief","51A03"]
[null,"Onvolledig behandeltraject","51A04"]
[null,"Umami","51A05"]
[52,"Specialistische GGZ"]
[null,"Specialistische GGZ (opt-out)","52A00"]
[53,"Kindergeneeskunde"]
[null,"Behandeling of onderzoek op de polikliniek of dagbehandeling bij gedragsproblemen","53A01"]
[null,"Consult op de polikliniek bij gedragsproblemen","53A02"]
[null,"Meer dan 6 polikliniekbezoeken of meer dan 1 dagbehandeling bij een psychische of gedragsaandoening","53A03"]
[null,"Consult op de polikliniek bij een psychische of gedragsaandoening","53A04"]
[null,"Behandeling of onderzoek op de polikliniek of dagbehandeling bij een psychische of gedragsaandoening (incl. activiteiten psychosociaal specifiek)","53A05"]
[null,"Behandeling of onderzoek op de polikliniek of dagbehandeling bij Een psychische of gedragsaandoening (excl. activiteiten psychosociaal specifiek)","53A06"]
[]
[null,"Consultatie","L0001"]
[null,"JeugdzorgPlus voor onder de 12 jaar","L0002"]
[null,"Zeer Intensieve Kortdurende Observatie en Stabilisatie","L0003"]
[null,"JeugdzorgPlus Moeder & Kind","L0004"]
[null,"Adoptienazorg Preventief","L0005"]
[null,"Adoptienazorg Basis","L0006"]
[null,"Adoptienazorg – kort vervolgtraject","L0007"]
[null,"Adoptienazorg Uitgebreid Traject","L0008"]
[null,"Diagnostiek - vanaf 0 tot en met 99 minuten","L0009"]
[null,"Diagnostiek - vanaf 100 tot en met 199 minuten","L0010"]
[null,"Diagnostiek - vanaf 200 tot en met 399 minuten","L0011"]
[null,"Diagnostiek - vanaf 400 tot en met 799 minuten","L0012"]
[null,"Diagnostiek - vanaf 800 tot en met 1.199 minuten","L0013"]
[null,"Diagnostiek - vanaf 1.200 tot en met 1.799 minuten","L0014"]
[null,"Diagnostiek - vanaf 1.800 minuten","L0015"]
[null,"Crisis - vanaf 0 tot en met 99 minuten","L0016"]
[null,"Crisis - vanaf 100 tot en met 199 minuten","L0017"]
[null,"Crisis - vanaf 200 tot en met 399 minuten","L0018"]
[null,"Crisis - vanaf 400 tot en met 799 minuten","L0019"]
[null,"Crisis - vanaf 800 tot en met 1.199 minuten","L0020"]
[null,"Crisis - vanaf 1.200 tot en met 1.799 minuten","L0021"]
[null,"Crisis - vanaf 1.800 minuten","L0022"]
[null,"Behandeling kort - vanaf 0 tot en met 99 minuten","L0023"]
[null,"Behandeling kort - vanaf 100 tot en met 199 minuten","L0024"]
[null,"Behandeling kort - vanaf 200 tot en met 399 minuten","L0025"]
[null,"Behandeling kort - vanaf 400 minuten","L0026"]
[null,"Aandachtstekort - en gedrag - vanaf 250 tot en met 799 minuten","L0027"]
[null,"Aandachtstekort - en gedrag - vanaf 800 tot en met 1.799 minuten","L0028"]
[null,"Aandachtstekort - en gedrag - vanaf 1.800 tot en met 2.999 minuten","L0029"]
[null,"Aandachtstekort - en gedrag - vanaf 3.000 tot en met 5.999 minuten","L0030"]
[null,"Aandachtstekort - en gedrag - vanaf 6.000 tot en met 11.999 minuten","L0031"]
[null,"Aandachtstekort - en gedrag - vanaf 12.000 tot en met 17.999 minuten","L0032"]
[null,"Aandachtstekort - en gedrag - vanaf 18.000 tot en met 23.999 minuten","L0033"]
[null,"Aandachtstekort - en gedrag - vanaf 24.000 minuten","L0034"]
[null,"Pervasief - vanaf 250 tot en met 799 minuten","L0035"]
[null,"Pervasief - vanaf 800 tot en met 1.799 minuten","L0036"]
[null,"Pervasief - vanaf 1.800 tot en met 2.999 minuten","L0037"]
[null,"Pervasief - vanaf 3.000 tot en met 5.999 minuten","L0038"]
[null,"Pervasief - vanaf 6.000 tot en met 11.999 minuten","L0039"]
[null,"Pervasief - vanaf 12.000 tot en met 17.999 minuten","L0040"]
[null,"Pervasief - vanaf 18.000 tot en met 23.999 minuten","L0041"]
[null,"Pervasief - vanaf 24.000 minuten","L0042"]
[null,"Overige kindertijd - vanaf 250 tot en met 799 minuten","L0043"]
[null,"Overige kindertijd - vanaf 800 tot en met 1.799 minuten","L0044"]
[null,"Overige kindertijd - vanaf 1.800 tot en met 2.999 minuten","L0045"]
[null,"Overige kindertijd - vanaf 3.000 tot en met 5.999 minuten","L0046"]
[null,"Overige kindertijd - vanaf 6.000 tot en met 11.999 minuten","L0047"]
[null,"Overige kindertijd - vanaf 12.000 tot en met 17.999 minuten","L0048"]
[null,"Overige kindertijd - vanaf 18.000 minuten","L0049"]
[null,"Delirium dementie en overig - vanaf 250 tot en met 799 minuten","L0050"]
[null,"Delirium dementie en overig - vanaf 800 tot en met 1.799 minuten","L0051"]
[null,"Delirium dementie en overig - vanaf 1.800 tot en met 2.999 minuten","L0052"]
[null,"Delirium dementie en overig - vanaf 3.000 tot en met 5.999 minuten","L0053"]
[null,"Delirium dementie en overig - vanaf 6.000 tot en met 11.999 minuten","L0054"]
[null,"Delirium dementie en overig - vanaf 12.000 tot en met 17.999 minuten","L0055"]
[null,"Delirium dementie en overig - vanaf 18.000 minuten","L0056"]
[null,"Alcohol - vanaf 250 tot en met 799 minuten","L0057"]
[null,"Alcohol - vanaf 800 tot en met 1.799 minuten","L0058"]
[null,"Alcohol - vanaf 1.800 tot en met 2.999 minuten","L0059"]
[null,"Alcohol - vanaf 3.000 tot en met 5.999 minuten","L0060"]
[null,"Alcohol - vanaf 6.000 tot en met 11.999 minuten","L0061"]
[null,"Alcohol - vanaf 12.000 tot en met 17.999 minuten","L0062"]
[null,"Alcohol - vanaf 18.000 minuten","L0063"]
[null,"Overige aan een middel - vanaf 250 tot en met 799 minuten","L0064"]
[null,"Overige aan een middel - vanaf 800 tot en met 1.799 minuten","L0065"]
[null,"Overige aan een middel - vanaf 1.800 tot en met 2.999 minuten","L0066"]
[null,"Overige aan een middel - vanaf 3.000 tot en met 5.999 minuten","L0067"]
[null,"Overige aan een middel - vanaf 6.000 tot en met 11.999 minuten","L0068"]
[null,"Overige aan een middel - vanaf 12.000 tot en met 17.999 minuten","L0069"]
[null,"Overige aan een middel - vanaf 18.000 minuten","L0070"]
[null,"Angst - vanaf 250 tot en met 799 minuten","L0071"]
[null,"Angst - vanaf 800 tot en met 1.799 minuten","L0072"]
[null,"Angst - vanaf 1.800 tot en met 2.999 minuten","L0073"]
[null,"Angst - vanaf 3.000 tot en met 5.999 minuten","L0074"]
[null,"Angst - vanaf 6.000 tot en met 11.999 minuten","L0075"]
[null,"Angst - vanaf 12.000 tot en met 17.999 minuten","L0076"]
[null,"Angst - vanaf 18.000 tot en met 23.999 minuten","L0077"]
[null,"Angst - vanaf 24.000 minuten","L0078"]
[null,"Restgroep diagnoses - vanaf 250 tot en met 799 minuten","L0079"]
[null,"Restgroep diagnoses - vanaf 800 tot en met 1.799 minuten","L0080"]
[null,"Restgroep diagnoses - vanaf 1.800 tot en met 2.999 minuten","L0081"]
[null,"Restgroep diagnoses - vanaf 3.000 tot en met 5.999 minuten","L0082"]
[null,"Restgroep diagnoses - vanaf 6.000 tot en met 11.999 minuten","L0083"]
[null,"Restgroep diagnoses - vanaf 12.000 tot en met 17.999 minuten","L0084"]
[null,"Restgroep diagnoses - vanaf 18.000 minuten","L0085"]
[null,"Persoonlijkheid - vanaf 250 tot en met 799 minuten","L0086"]
[null,"Persoonlijkheid - vanaf 800 tot en met 1.799 minuten","L0087"]
[null,"Persoonlijkheid - vanaf 1.800 tot en met 2.999 minuten","L0088"]
[null,"Persoonlijkheid - vanaf 3.000 tot en met 5.999 minuten","L0089"]
[null,"Persoonlijkheid - vanaf 6.000 tot en met 11.999 minuten","L0090"]
[null,"Persoonlijkheid - vanaf 12.000 tot en met 17.999 minuten","L0091"]
[null,"Persoonlijkheid - vanaf 18.000 tot en met 23.999 minuten","L0092"]
[null,"Persoonlijkheid - vanaf 24.000 tot en met 29.999 minuten","L0093"]
[null,"Persoonlijkheid - vanaf 30.000 minuten","L0094"]
[null,"Somatoforme - vanaf 250 tot en met 799 minuten","L0095"]
[null,"Somatoforme - vanaf 800 tot en met 1.799 minuten","L0096"]
[null,"Somatoforme - vanaf 1.800 tot en met 2.999 minuten","L0097"]
[null,"Somatoforme - vanaf 3.000 tot en met 5.999 minuten","L0098"]
[null,"Somatoforme - vanaf 6.000 tot en met 11.999 minuten","L0099"]
[null,"Somatoforme - vanaf 12.000 minuten","L0100"]
[null,"Eetstoornis - vanaf 250 tot en met 799 minuten","L0101"]
[null,"Eetstoornis - vanaf 800 tot en met 1.799 minuten","L0102"]
[null,"Eetstoornis - vanaf 1.800 tot en met 2.999 minuten","L0103"]
[null,"Eetstoornis - vanaf 3.000 tot en met 5.999 minuten","L0104"]
[null,"Eetstoornis - vanaf 6.000 tot en met 11.999 minuten","L0105"]
[null,"Eetstoornis - vanaf 12.000 tot en met 17.999 minuten","L0106"]
[null,"Eetstoornis - vanaf 18.000 minuten","L0107"]
[null,"Deelprestatie verblijf A (Lichte verzorgingsgraad)","L0108"]
[null,"Deelprestatie verblijf B (Beperkte verzorgingsgraad)","L0109"]
[null,"Deelprestatie verblijf C (Matige verzorgingsgraad)","L0110"]
[null,"Deelprestatie verblijf D (Gemiddelde verzorgingsgraad)","L0111"]
[null,"Deelprestatie verblijf E (Intensieve verzorgingsgraad)","L0112"]
[null,"Deelprestatie verblijf F (Extra intensieve verzorgingsgraad)","L0113"]
[null,"Deelprestatie verblijf G (Zeer intensieve verzorgingsgraad)","L0114"]
[null,"Opvoedondersteuning doven en slechthorenden","L0115"]
[null,"Verblijf zonder overnachting (VZO), per dag","L0116"]
[null,"Beschikbaarheidscomponent crisis","L0117"]
[null,"ECT","L0118"]
[null,"Methadon","L0119"]
[null,"JSLVG (obv LVG 4)","L0120"]
[null,"JSLVG (obv LVG 5)","L0121"]
[null,"Diagnostiek, observatie en exploratieve behandeling 3 LVG","L0122"]
[null,"Diagnostiek, observatie en exploratieve behandeling 4 LVG","L0123"]
[null,"Diagnostiek, observatie en exploratieve behandeling 5 LVG","L0124"]
[null,"Diagnostiek, observatie en exploratieve behandeling Very Intensive Care","L0125"]
[null,"Multidimensional Treatment Foster Care (MTFC)","L0126"]
[null,"Multidimensionele Familietherapie (MDFT)","L0127"]
[null,"Functional Family Therapy (FFT)","L0128"]
[null,"Multisysteem Therapie (MST)","L0129"]
[null,"Ouderschap met Liefde en Grenzen (OLG)","L0130"]
[null,"Advies forensisch pedriatisch","L0131"]
[null,"Intercollegiaal advies forensisch pedriatisch","L0132"]
[null,"MDO + intercollegiaal advies","L0133"]
[null,"Lichamelijk letselonderzoek standaard","L0134"]
[null,"Lichamelijk letselonderzoek complex","L0135"]
[null,"Dossier onderzoek (Forensisch Medische Analyse)","L0136"]
[null,"Extra module bij producten Lichamelijk letselonderzoek: inzet mobiele team","L0137"]
[null,"Voedselweigering – consult","L0138"]
[null,"24-uurzorg voedselweigering","L0139"]
[null,"24-uurszorg deeltijd weekend verlof voedselweigering","L0140"]
[null,"Dagbehandeling voedselweigering","L0141"]
[null,"Nazorg voedselweigering","L0142"]
[null,"Behandeling ambulant intensief voedselweigering","L0143"]
[null,"Reiskosten orthopedagogen voedselweigering","L0144"]
[null,"Behandeling ambulant voedselweigering","L0145"]
[null,"Zindelijkheidskamp","L0146"]
[null,"Opvang slachtoffers loverboys eergerelateerd geweld of mensenhandel","L0147"]
[null,"Opvang slachtoffers loverboys eergerelateerd geweld of mensenhandel dag 1 tot en met 35","L0148"]
[null,"Opvang slachtoffers loverboys eergerelateerd geweld of mensenhandel vanaf 36","L0149"]
[null,"Schizofrenie - 250 - 799 minuten","L0150"]
[null,"Schizofrenie - 800 - 1.799 minuten","L0151"]
[null,"Schizofrenie - 1.800 - 2.999 minuten","L0152"]
[null,"Schizofrenie - 3.000 - 5.999 minuten","L0153"]
[null,"Schizofrenie - 6.000 - 11.999 minuten","L0154"]
[null,"Schizofrenie - 12.000 - 17.999 minuten","L0155"]
[null,"Schizofrenie - 18.000 - 23.999 minuten","L0156"]
[null,"Schizofrenie - 24.000 - 29.999 minuten","L0157"]
[null,"Schizofrenie - vanaf 30.000 minuten","L0158"]
[null,"Depressie - 250 - 799 minuten","L0159"]
[null,"Depressie - 800 - 1.799 minuten","L0160"]
[null,"Depressie - 1.800 - 2.999 minuten","L0161"]
[null,"Depressie - 3.000 - 5.999 minuten","L0162"]
[null,"Depressie - 6.000 - 11.999 minuten","L0163"]
[null,"Depressie - 12.000 - 17.999 minuten","L0164"]
[null,"Depressie - 18.000 - 23.999 minuten","L0165"]
[null,"Depressie - vanaf 24.000 minuten","L0166"]
[null,"Bipolair en overig - 250 - 799 minuten","L0167"]
[null,"Bipolair en overig - 800 - 1.799 minuten","L0168"]
[null,"Bipolair en overig - 1.800 - 2.999 minuten","L0169"]
[null,"Bipolair en overig - 3.000 - 5.999 minuten","L0170"]
[null,"Bipolair en overig - 6.000 - 11.999 minuten","L0171"]
[null,"Bipolair en overig - 12.000 - 17.999 minuten","L0172"]
[null,"Bipolair en overig - vanaf 18.000 minuten","L0173"]

{"sheet":"sheet_name_check","index":8,"n_rows":0,"n_cols":0,"rows_kept":0,"cut":false,"hidden":true,"merged":[]}